[Event "Torneo Nuevo Centro. Jornada 11"]
[Site "Chess.com"]
[Date "2020.08.28"]
[Round "4"]
[White "Yuste Valenzuela, Alejandro"]
[Black "Cayon Pelaez, Pablo"]
[Result "1-0"]
[WhiteElo "1881"]
[BlackElo "1744"]
[TimeControl "180+2"]
[EndTime "11:07:44 PDT"]
[Termination "Victoria de alejandrito290 por abandono"]

1. e4 {[%clk 0:03:01.9]} 1... e5 {[%clk 0:02:57.6]} 2. Nf3 {[%clk 0:03:01.7]}
2... Nc6 {[%clk 0:02:58.8]} 3. d4 {[%clk 0:02:59.3]} 3... exd4 {[%clk
0:03:00.7]} 4. Bc4 {[%clk 0:02:59.6]} 4... Nf6 {[%clk 0:03:01.7]} 5. e5 {[%clk
0:02:59.8]} 5... d5 {[%clk 0:03:02.6]} 6. Bb5 {[%clk 0:03:01]} 6... Ne4 {[%clk
0:03:03.8]} 7. Nxd4 {[%clk 0:03:01.5]} 7... Bd7 {[%clk 0:03:05.4]} 8. Bxc6
{[%clk 0:03:02.5]} 8... bxc6 {[%clk 0:03:07.3]} 9. O-O {[%clk 0:03:03.5]} 9...
Bc5 {[%clk 0:03:07.8]} 10. Be3 {[%clk 0:03:04.4]} 10... O-O {[%clk 0:03:07.6]}
11. f3 {[%clk 0:03:02.8]} 11... Ng5 {[%clk 0:03:08.6]} 12. f4 {[%clk 0:03:03.3]}
12... Ne6 {[%clk 0:03:09.8]} 13. c3 {[%clk 0:03:02.6]} 13... Bb6 {[%clk
0:02:57.2]} 14. f5 {[%clk 0:02:56.1]} 14... Nxd4 {[%clk 0:02:57.7]} 15. cxd4
{[%clk 0:02:58]} 15... Re8 {[%clk 0:02:30]} 16. Qe1 {[%clk 0:02:37.9]} 16... f6
{[%clk 0:01:58.1]} 17. e6 {[%clk 0:02:37.4]} 17... Bc8 {[%clk 0:01:58.8]} 18.
Nc3 {[%clk 0:02:30]} 18... Qe7 {[%clk 0:01:37.1]} 19. Rc1 {[%clk 0:02:18.8]}
19... Bxe6 {[%clk 0:01:17.3]} 20. fxe6 {[%clk 0:02:16.3]} 20... Qxe6 {[%clk
0:01:19.2]} 21. Bf2 {[%clk 0:02:11]} 21... Qg4 {[%clk 0:01:04.7]} 22. Qd1 {[%clk
0:01:56.9]} 22... Qg6 {[%clk 0:01:03.4]} 23. Qc2 {[%clk 0:01:49.8]} 23... Qg4
{[%clk 0:00:58.4]} 24. Qd3 {[%clk 0:01:43.6]} 24... f5 {[%clk 0:00:39.1]} 25. h3
{[%clk 0:01:32.7]} 25... Qg6 {[%clk 0:00:39.5]} 26. Rce1 {[%clk 0:01:32.5]}
26... Rf8 {[%clk 0:00:40.1]} 27. Na4 {[%clk 0:01:26.9]} 27... Qf6 {[%clk
0:00:29.3]} 28. Nc5 {[%clk 0:01:26.3]} 28... Bxc5 {[%clk 0:00:29.3]} 29. dxc5
{[%clk 0:01:27.7]} 29... Qxb2 {[%clk 0:00:28]} 30. Bd4 {[%clk 0:01:25]} 30...
Qa3 {[%clk 0:00:29.2]} 31. Qxa3 {[%clk 0:01:25.1]} 1

[Event "Torneo Nuevo Centro. Jornada 11"]
[Site "Chess.com"]
[Date "2020.08.28"]
[Round "4"]
[White "Conejero Martínez, Víctor"]
[Black "Perez Garcia, Jose Miguel"]
[Result "0-1"]
[WhiteElo "1369"]
[BlackElo "2031"]
[TimeControl "180+2"]
[EndTime "11:07:48 PDT"]
[Termination "Victoria de PEREZOV69 por abandono"]

1. d4 {[%clk 0:03:01.9]} 1... d6 {[%clk 0:03:01]} 2. c4 {[%clk 0:03:02.5]} 2...
Nf6 {[%clk 0:03:02.9]} 3. Nc3 {[%clk 0:03:02.8]} 3... g6 {[%clk 0:03:04.3]} 4.
Nf3 {[%clk 0:03:00.5]} 4... Bg7 {[%clk 0:03:04.3]} 5. e3 {[%clk 0:02:55.9]} 5...
O-O {[%clk 0:03:04.9]} 6. Be2 {[%clk 0:02:56.6]} 6... c5 {[%clk 0:03:05.8]} 7.
O-O {[%clk 0:02:56.6]} 7... Nc6 {[%clk 0:03:06.2]} 8. Bd2 {[%clk 0:02:57.5]}
8... cxd4 {[%clk 0:03:06.3]} 9. exd4 {[%clk 0:02:56.9]} 9... Qb6 {[%clk
0:03:06.8]} 10. Na4 {[%clk 0:02:42.8]} 10... Qd8 {[%clk 0:03:02.2]} 11. Qc1
{[%clk 0:02:40.1]} 11... Ne4 {[%clk 0:03:02.6]} 12. Bh6 {[%clk 0:02:38.1]} 12...
Bf5 {[%clk 0:03:01.2]} 13. Bxg7 {[%clk 0:02:32.8]} 13... Kxg7 {[%clk 0:03:03.1]}
14. Nc3 {[%clk 0:02:32.8]} 14... Rc8 {[%clk 0:03:01.1]} 15. Nxe4 {[%clk
0:02:31]} 15... Bxe4 {[%clk 0:03:03]} 16. Rd1 {[%clk 0:02:15.5]} 16... Qb6
{[%clk 0:03:01.4]} 17. Ng5 {[%clk 0:02:09]} 17... Nxd4 {[%clk 0:02:48.6]} 18.
Qc3 {[%clk 0:02:02.3]} 18... e5 {[%clk 0:02:43.8]} 19. Bg4 {[%clk 0:01:52.1]}
19... f5 {[%clk 0:02:43.4]} 20. Nxe4 {[%clk 0:01:51.3]} 20... fxg4 {[%clk
0:02:37.9]} 21. Qg3 {[%clk 0:01:33.1]} 21... Ne2+ {[%clk 0:02:36.9]} 22. Kh1
{[%clk 0:01:29.2]} 22... Nxg3+ {[%clk 0:02:38.8]} 23. hxg3 {[%clk 0:01:29.7]}
23... Rcd8 {[%clk 0:02:37.5]} 24. Rd2 {[%clk 0:01:15.3]} 24... Rd7 {[%clk
0:02:35.6]} 25. Rad1 {[%clk 0:01:13.5]} 25... Rfd8 {[%clk 0:02:37.1]} 26. Ng5
{[%clk 0:01:11.6]} 26... Kf6 {[%clk 0:02:34.6]} 27. f4 {[%clk 0:01:08.1]} 27...
gxf3 {[%clk 0:02:34.4]} 28. Nxf3 {[%clk 0:01:07.4]} 28... h6 {[%clk 0:02:33.5]}
29. Rf1 {[%clk 0:01:06.2]} 29... Kg7 {[%clk 0:02:34.3]} 30. Nh4 {[%clk
0:00:58.3]} 30... Rf7 {[%clk 0:02:34.4]} 31. Rfd1 {[%clk 0:00:42.7]} 31... g5
{[%clk 0:02:32.2]} 32. Nf3 {[%clk 0:00:42.6]} 32... Rxf3 {[%clk 0:02:33.2]} 33.
gxf3 {[%clk 0:00:43]} 33... Qe3 {[%clk 0:02:35.1]} 34. Kg2 {[%clk 0:00:40.9]}
34... b6 {[%clk 0:02:30.4]} 35. Rxd6 {[%clk 0:00:41.2]} 35... Rxd6 {[%clk
0:02:32.3]} 36. Rxd6 {[%clk 0:00:42]} 36... Qe2+ {[%clk 0:02:33.5]} 37. Kh3
{[%clk 0:00:41]} 37... Qxf3 {[%clk 0:02:34.2]} 38. Rd7+ {[%clk 0:00:41.7]} 38...
Kg6 {[%clk 0:02:34.8]} 39. Rxa7 {[%clk 0:00:41.2]} 39... h5 {[%clk 0:02:33.5]}
40. Ra6 {[%clk 0:00:39.5]} 40... g4+ {[%clk 0:02:34]} 41. Kh2 {[%clk 0:00:37.5]}
41... Qf2+ {[%clk 0:02:35]} 42. Kh1 {[%clk 0:00:36.8]} 42... Qf1+ {[%clk
0:02:35.6]} 43. Kh2 {[%clk 0:00:37.5]} 43... Qf2+ {[%clk 0:02:37.5]} 44. Kh1
{[%clk 0:00:38.2]} 44... Qxg3 {[%clk 0:02:39.4]} 45. Rxb6+ {[%clk 0:00:38]}
45... Kg5 {[%clk 0:02:41.1]} 46. a4 {[%clk 0:00:32.9]} 46... Qe1+ {[%clk
0:02:39.3]} 47. Kg2 {[%clk 0:00:31.4]} 47... Qe2+ {[%clk 0:02:40.3]} 48. Kg1
{[%clk 0:00:30.2]} 48... Qe3+ {[%clk 0:02:40.6]} 0

[Event "Torneo Nuevo Centro. Jornada 11"]
[Site "Chess.com"]
[Date "2020.08.28"]
[Round "4"]
[White "Alvarez Usina, Jordi"]
[Black "Chofre Murcia, Adrián"]
[Result "0-1"]
[WhiteElo "1266"]
[BlackElo "1634"]
[TimeControl "180+2"]
[EndTime "11:07:55 PDT"]
[Termination "Victoria de Kelorian por abandono"]

1. d4 {[%clk 0:03:01.9]} 1... f5 {[%clk 0:02:59.7]} 2. Bf4 {[%clk 0:03:01.2]}
2... e6 {[%clk 0:03:00.5]} 3. e3 {[%clk 0:02:59.4]} 3... d5 {[%clk 0:03:00.7]}
4. Nf3 {[%clk 0:02:55.5]} 4... Nc6 {[%clk 0:02:59.8]} 5. Be2 {[%clk 0:02:47.1]}
5... Nf6 {[%clk 0:02:57.9]} 6. Ne5 {[%clk 0:02:41.9]} 6... Nxe5 {[%clk
0:02:57.6]} 7. dxe5 {[%clk 0:02:40.5]} 7... Ne4 {[%clk 0:02:51.7]} 8. Nd2 {[%clk
0:02:32.6]} 8... Nxd2 {[%clk 0:02:51.8]} 9. Qxd2 {[%clk 0:02:31.1]} 9... Be7
{[%clk 0:02:52.6]} 10. O-O {[%clk 0:02:26.3]} 10... O-O {[%clk 0:02:52]} 11. Bh5
{[%clk 0:02:17.3]} 11... Bg5 {[%clk 0:02:50.9]} 12. Rad1 {[%clk 0:01:51.8]}
12... Bxf4 {[%clk 0:02:44.6]} 13. exf4 {[%clk 0:01:50.7]} 13... Qh4 {[%clk
0:02:43.8]} 14. Bf3 {[%clk 0:01:45.5]} 14... Bd7 {[%clk 0:02:43.1]} 15. g3
{[%clk 0:01:45.1]} 15... Qe7 {[%clk 0:02:42]} 16. c4 {[%clk 0:01:43.7]} 16... c6
{[%clk 0:02:40.4]} 17. b4 {[%clk 0:01:22]} 17... Rad8 {[%clk 0:02:38.3]} 18. c5
{[%clk 0:01:17.9]} 18... Be8 {[%clk 0:02:36.6]} 19. Qc3 {[%clk 0:01:12.5]} 19...
a6 {[%clk 0:02:34]} 20. Rd2 {[%clk 0:01:12.2]} 20... Qc7 {[%clk 0:02:30.8]} 21.
Rfd1 {[%clk 0:01:11]} 21... Ra8 {[%clk 0:02:18.2]} 22. a3 {[%clk 0:01:08.1]}
22... a5 {[%clk 0:02:17]} 23. Ra1 {[%clk 0:01:01.5]} 23... axb4 {[%clk 0:02:14]}
24. Qxb4 {[%clk 0:01:00.6]} 24... Bd7 {[%clk 0:02:05.6]} 25. Rb2 {[%clk
0:00:59]} 25... Bc8 {[%clk 0:02:04.5]} 26. Qc3 {[%clk 0:00:42.1]} 26... Qa5
{[%clk 0:01:59.1]} 27. Qxa5 {[%clk 0:00:40.4]} 27... Rxa5 {[%clk 0:01:59.5]} 28.
Rc2 {[%clk 0:00:36.2]} 28... Rf7 {[%clk 0:01:53.5]} 29. Be2 {[%clk 0:00:35.2]}
29... h6 {[%clk 0:01:50.2]} 30. a4 {[%clk 0:00:34.1]} 30... Rc7 {[%clk
0:01:46.2]} 31. Bf1 {[%clk 0:00:25.1]} 31... Bd7 {[%clk 0:01:44.6]} 0

[Event "Torneo Nuevo Centro. Jornada 11"]
[Site "Chess.com"]
[Date "2020.08.28"]
[Round "4"]
[White "Aguado, Pablo Luis"]
[Black "Gimenez Saiz, Jose Raul"]
[Result "0-1"]
[WhiteElo "1918"]
[BlackElo "1827"]
[TimeControl "180+2"]
[EndTime "11:08:01 PDT"]
[Termination "Victoria de rango013 por abandono"]

1. d4 {[%clk 0:03:01.9]} 1... d6 {[%clk 0:02:59.7]} 2. Nf3 {[%clk 0:03:00.6]}
2... Nd7 {[%clk 0:02:53.9]} 3. c4 {[%clk 0:02:56]} 3... g6 {[%clk 0:02:52]} 4.
Nc3 {[%clk 0:02:56.8]} 4... Bg7 {[%clk 0:02:53.2]} 5. e4 {[%clk 0:02:57.7]} 5...
Ngf6 {[%clk 0:02:52.1]} 6. Be2 {[%clk 0:02:57.4]} 6... O-O {[%clk 0:02:51.9]} 7.
O-O {[%clk 0:02:55.9]} 7... e5 {[%clk 0:02:47.6]} 8. Be3 {[%clk 0:02:46.6]} 8...
exd4 {[%clk 0:02:35]} 9. Nxd4 {[%clk 0:02:45.3]} 9... Re8 {[%clk 0:02:35.2]} 10.
f3 {[%clk 0:02:38.1]} 10... Nc5 {[%clk 0:02:35.7]} 11. Qd2 {[%clk 0:02:27.6]}
11... a5 {[%clk 0:02:35.8]} 12. Bg5 {[%clk 0:02:25.2]} 12... c6 {[%clk
0:02:21.9]} 13. Rad1 {[%clk 0:02:20.6]} 13... Qc7 {[%clk 0:02:21.5]} 14. Nc2
{[%clk 0:02:13.9]} 14... Rd8 {[%clk 0:01:57.9]} 15. e5 {[%clk 0:02:03.4]} 15...
Ne8 {[%clk 0:01:54.7]} 16. Bxd8 {[%clk 0:02:03]} 16... Qxd8 {[%clk 0:01:55.4]}
17. exd6 {[%clk 0:02:02.6]} 17... Qb6 {[%clk 0:01:52.8]} 18. Ne3 {[%clk
0:01:47.4]} 18... Be6 {[%clk 0:01:52.6]} 19. Kh1 {[%clk 0:01:46.4]} 19... Rd8
{[%clk 0:01:52.4]} 20. Qc2 {[%clk 0:01:38.4]} 20... Nxd6 {[%clk 0:01:52.2]} 21.
a3 {[%clk 0:01:33.6]} 21... Nb3 {[%clk 0:01:45.2]} 22. Na4 {[%clk 0:01:27.6]}
22... Qxe3 {[%clk 0:01:30.9]} 23. Rd3 {[%clk 0:01:18.5]} 23... Nd4 {[%clk
0:01:04.4]} 24. Qd1 {[%clk 0:01:10.1]} 24... Qxe2 {[%clk 0:01:03.5]} 25. Qxe2
{[%clk 0:00:59.7]} 25... Nxe2 {[%clk 0:01:05.4]} 26. c5 {[%clk 0:01:00.9]} 26...
Nd4 {[%clk 0:01:02.4]} 27. cxd6 {[%clk 0:00:59.2]} 27... Bc4 {[%clk 0:00:52]}
28. Nc5 {[%clk 0:00:32.5]} 0

[Event "Torneo Nuevo Centro. Jornada 11"]
[Site "Chess.com"]
[Date "2020.08.28"]
[Round "4"]
[White "Gómez Alonso, Óscar"]
[Black "Conon, Catalin"]
[Result "1-0"]
[WhiteElo "1803"]
[BlackElo "1913"]
[TimeControl "180+2"]
[EndTime "11:08:30 PDT"]
[Termination "Victoria de osgo78 por abandono"]

1. d4 {[%clk 0:03:00.1]} 1... Nf6 {[%clk 0:03:00.8]} 2. c4 {[%clk 0:03:01]} 2...
e6 {[%clk 0:03:01.9]} 3. Nc3 {[%clk 0:03:02]} 3... d5 {[%clk 0:03:03.2]} 4. Nf3
{[%clk 0:03:01.7]} 4... Be7 {[%clk 0:03:03.9]} 5. Bf4 {[%clk 0:03:01.5]} 5...
O-O {[%clk 0:03:04.5]} 6. e3 {[%clk 0:03:02.2]} 6... c5 {[%clk 0:03:06]} 7. dxc5
{[%clk 0:03:01.2]} 7... dxc4 {[%clk 0:03:06.3]} 8. Qxd8 {[%clk 0:03:01.2]} 8...
Rxd8 {[%clk 0:03:08.2]} 9. Bxc4 {[%clk 0:02:59.5]} 9... Bxc5 {[%clk 0:03:09.3]}
10. O-O {[%clk 0:02:59.9]} 10... Nc6 {[%clk 0:03:10.5]} 11. a3 {[%clk
0:02:57.6]} 11... b6 {[%clk 0:03:09.7]} 12. Bg5 {[%clk 0:02:57.8]} 12... Bb7
{[%clk 0:03:08.1]} 13. Bxf6 {[%clk 0:02:56.5]} 13... gxf6 {[%clk 0:03:08.7]} 14.
Rfd1 {[%clk 0:02:57.5]} 14... Be7 {[%clk 0:03:09.4]} 15. b4 {[%clk 0:02:41.6]}
15... Rac8 {[%clk 0:02:52.5]} 16. Rxd8+ {[%clk 0:02:16.9]} 16... Bxd8 {[%clk
0:02:53.2]} 17. Ne2 {[%clk 0:02:09.8]} 17... Nxb4 {[%clk 0:02:54.3]} 18. axb4
{[%clk 0:02:10.6]} 18... Rxc4 {[%clk 0:02:54.8]} 19. Rxa7 {[%clk 0:02:10.9]}
19... Bxf3 {[%clk 0:02:56]} 20. gxf3 {[%clk 0:02:11.8]} 20... Rxb4 {[%clk
0:02:57.4]} 21. Ra8 {[%clk 0:02:11.5]} 21... Rb1+ {[%clk 0:02:46.4]} 22. Kg2
{[%clk 0:02:12.6]} 22... Rd1 {[%clk 0:02:47.5]} 23. Nd4 {[%clk 0:02:13.3]} 23...
Rc1 {[%clk 0:02:29.5]} 24. Rxd8+ {[%clk 0:02:13.7]} 24... Kg7 {[%clk 0:02:31]}
25. Rd7 {[%clk 0:02:12.6]} 25... Kg6 {[%clk 0:02:29]} 26. Rb7 {[%clk 0:02:13.4]}
26... Rb1 {[%clk 0:02:29]} 27. f4 {[%clk 0:02:13.2]} 27... Rb4 {[%clk
0:02:19.5]} 28. Kf3 {[%clk 0:02:12.1]} 28... e5 {[%clk 0:02:17.5]} 29. fxe5
{[%clk 0:02:11.8]} 29... fxe5 {[%clk 0:02:19.4]} 30. Nc6 {[%clk 0:02:10.3]}
30... e4+ {[%clk 0:02:02.3]} 31. Kg2 {[%clk 0:02:10.3]} 31... Rb5 {[%clk
0:01:50.3]} 32. Nd4 {[%clk 0:02:03.7]} 32... Rb4 {[%clk 0:01:44.7]} 33. Kg3
{[%clk 0:02:03.2]} 33... h5 {[%clk 0:01:42.7]} 34. h4 {[%clk 0:02:03.9]} 34...
Rb1 {[%clk 0:01:08.7]} 35. Ne2 {[%clk 0:01:59.4]} 35... f6 {[%clk 0:00:38.9]}
36. Nf4+ {[%clk 0:01:57.5]} 36... Kh6 {[%clk 0:00:40.3]} 37. Rf7 {[%clk
0:01:52.6]} 37... Rg1+ {[%clk 0:00:37]} 38. Kh2 {[%clk 0:01:53.1]} 38... Rg4
{[%clk 0:00:37.7]} 39. Kh3 {[%clk 0:01:37.2]} 39... b5 {[%clk 0:00:34.6]} 40.
Rxf6+ {[%clk 0:01:37.7]} 40... Kh7 {[%clk 0:00:36.5]} 41. Rb6 {[%clk 0:01:36.6]}
41... Rg2 {[%clk 0:00:27]} 42. Nxg2 {[%clk 0:01:33]} 1

[Event "Torneo Nuevo Centro. Jornada 11"]
[Site "Chess.com"]
[Date "2020.08.28"]
[Round "4"]
[White "Escalona Moncholi, Felix"]
[Black "Fenollar Jorda, Manolo"]
[Result "0-1"]
[WhiteElo "2110"]
[BlackElo "2470"]
[TimeControl "180+2"]
[EndTime "11:08:41 PDT"]
[Termination "Victoria de Cucudrulu por abandono"]

1. e4 {[%clk 0:03:01.9]} 1... e5 {[%clk 0:02:57.3]} 2. Nf3 {[%clk 0:03:02.5]}
2... Nc6 {[%clk 0:02:58.8]} 3. Bb5 {[%clk 0:03:03.3]} 3... a6 {[%clk 0:02:59.3]}
4. Ba4 {[%clk 0:03:04.3]} 4... Nf6 {[%clk 0:02:59]} 5. O-O {[%clk 0:03:04.9]}
5... b5 {[%clk 0:03:00.3]} 6. Bb3 {[%clk 0:03:05.5]} 6... Bc5 {[%clk 0:03:01.8]}
7. c3 {[%clk 0:03:05.4]} 7... d6 {[%clk 0:03:03.1]} 8. d4 {[%clk 0:03:03.3]}
8... Bb6 {[%clk 0:03:04.4]} 9. h3 {[%clk 0:03:01.5]} 9... Bb7 {[%clk 0:03:04.5]}
10. Re1 {[%clk 0:02:58.7]} 10... O-O {[%clk 0:03:04.4]} 11. Bg5 {[%clk
0:02:47.5]} 11... h6 {[%clk 0:03:05.1]} 12. Bh4 {[%clk 0:02:48.2]} 12... g5
{[%clk 0:03:06.1]} 13. Bg3 {[%clk 0:02:48.9]} 13... Re8 {[%clk 0:03:03]} 14. d5
{[%clk 0:02:32.1]} 14... Ne7 {[%clk 0:02:58.9]} 15. c4 {[%clk 0:02:12.1]} 15...
c6 {[%clk 0:02:51]} 16. cxb5 {[%clk 0:02:09.3]} 16... cxb5 {[%clk 0:02:50.7]}
17. Nc3 {[%clk 0:02:05.1]} 17... Ng6 {[%clk 0:02:49.6]} 18. a3 {[%clk
0:01:55.4]} 18... Nh5 {[%clk 0:02:46]} 19. Bh2 {[%clk 0:01:54.6]} 19... Qf6
{[%clk 0:02:41.8]} 20. Rf1 {[%clk 0:01:49.1]} 20... Nhf4 {[%clk 0:02:41.8]} 21.
Bc2 {[%clk 0:01:36.7]} 21... Kg7 {[%clk 0:02:36.9]} 22. Rc1 {[%clk 0:01:11.9]}
22... Rac8 {[%clk 0:02:27.3]} 23. Bg3 {[%clk 0:01:11.2]} 23... Rc7 {[%clk
0:02:24]} 24. Bb1 {[%clk 0:01:06.2]} 24... Rec8 {[%clk 0:02:24.2]} 25. Kh2
{[%clk 0:01:06.4]} 25... h5 {[%clk 0:02:14.2]} 26. Bxf4 {[%clk 0:00:58.4]} 26...
Nxf4 {[%clk 0:02:04.7]} 27. g3 {[%clk 0:00:57.5]} 27... Ng6 {[%clk 0:01:59.9]}
28. Kg2 {[%clk 0:00:57.6]} 28... Rh8 {[%clk 0:01:12.4]} 29. Nh2 {[%clk
0:00:32.5]} 29... Bc8 {[%clk 0:01:04.4]} 30. Qf3 {[%clk 0:00:32.1]} 30... Bxh3+
{[%clk 0:00:48.3]} 31. Kxh3 {[%clk 0:00:18.4]} 31... g4+ {[%clk 0:00:48.2]} 32.
Nxg4 {[%clk 0:00:17.3]} 32... Qxf3 {[%clk 0:00:44.4]} 0

[Event "Torneo Nuevo Centro. Jornada 11"]
[Site "Chess.com"]
[Date "2020.08.28"]
[Round "4"]
[White "Martínez Escandell, Alfonso"]
[Black "Roca Cruz, Rafael"]
[Result "0-1"]
[WhiteElo "1915"]
[BlackElo "1808"]
[TimeControl "180+2"]
[EndTime "11:08:42 PDT"]
[Termination "Victoria de RafaRocaCruz por jaque mate"]

1. e4 {[%clk 0:03:01.9]} 1... c5 {[%clk 0:03:00.7]} 2. Nf3 {[%clk 0:03:01.2]}
2... e6 {[%clk 0:03:01.8]} 3. c3 {[%clk 0:02:58.1]} 3... d5 {[%clk 0:03:02.2]}
4. exd5 {[%clk 0:02:57.1]} 4... Qxd5 {[%clk 0:03:03.3]} 5. d4 {[%clk 0:02:57.2]}
5... Nf6 {[%clk 0:03:04.4]} 6. Bb5+ {[%clk 0:02:50.3]} 6... Bd7 {[%clk
0:03:02.4]} 7. Bxd7+ {[%clk 0:02:33.7]} 7... Nbxd7 {[%clk 0:02:38]} 8. O-O
{[%clk 0:02:28.8]} 8... cxd4 {[%clk 0:02:30.8]} 9. Qxd4 {[%clk 0:02:28.8]} 9...
Bc5 {[%clk 0:02:25.9]} 10. Qxd5 {[%clk 0:02:24.4]} 10... Nxd5 {[%clk 0:02:26.8]}
11. Rd1 {[%clk 0:02:22.4]} 11... O-O {[%clk 0:02:11.1]} 12. c4 {[%clk
0:02:20.9]} 12... N5f6 {[%clk 0:02:11.1]} 13. Nc3 {[%clk 0:02:20.2]} 13... h6
{[%clk 0:02:09.1]} 14. Bf4 {[%clk 0:02:01.3]} 14... a6 {[%clk 0:01:52.3]} 15. a3
{[%clk 0:01:55.2]} 15... Rac8 {[%clk 0:01:51.4]} 16. Bg3 {[%clk 0:01:49.8]}
16... Rfd8 {[%clk 0:01:47.1]} 17. Ne5 {[%clk 0:01:33.5]} 17... Nxe5 {[%clk
0:01:35.3]} 18. Bxe5 {[%clk 0:01:27.6]} 18... Bxf2+ {[%clk 0:01:35.9]} 19. Kxf2
{[%clk 0:01:23]} 19... Ng4+ {[%clk 0:01:36.6]} 20. Kg1 {[%clk 0:01:21.2]} 20...
Nxe5 {[%clk 0:01:37.4]} 21. Rxd8+ {[%clk 0:01:21.1]} 21... Rxd8 {[%clk
0:01:37.6]} 22. c5 {[%clk 0:01:21.9]} 22... Rd2 {[%clk 0:01:37.1]} 23. b4 {[%clk
0:01:19.8]} 23... Nc4 {[%clk 0:01:21.9]} 24. Ne4 {[%clk 0:01:18.5]} 24... Re2
{[%clk 0:01:17.4]} 25. Ng3 {[%clk 0:00:59.6]} 25... Rc2 {[%clk 0:01:08.2]} 26.
Ne4 {[%clk 0:00:55.8]} 26... Ne3 {[%clk 0:01:06.9]} 27. Nd6 {[%clk 0:00:54.3]}
27... Rxg2+ {[%clk 0:00:37.1]} 28. Kh1 {[%clk 0:00:54.7]} 28... Rc2 {[%clk
0:00:35.2]} 29. Nxb7 {[%clk 0:00:54.9]} 29... Ng4 {[%clk 0:00:33.3]} 30. h3
{[%clk 0:00:55.5]} 30... Ne5 {[%clk 0:00:30.8]} 31. Nd6 {[%clk 0:00:49.6]} 31...
Nf3 {[%clk 0:00:31.5]} 32. Rf1 {[%clk 0:00:38.2]} 32... Rh2# {[%clk 0:00:31.9]}
0

[Event "Torneo Nuevo Centro. Jornada 11"]
[Site "Chess.com"]
[Date "2020.08.28"]
[Round "4"]
[White "Carbonell Bofill, Carlos Eloy"]
[Black "Rodriguez Rodriguez, Joan David "]
[Result "1-0"]
[WhiteElo "1914"]
[BlackElo "1785"]
[TimeControl "180+2"]
[EndTime "11:08:54 PDT"]
[Termination "Victoria de MFCARLOS por jaque mate"]

1. d4 {[%clk 0:03:01.9]} 1... d6 {[%clk 0:03:01.2]} 2. Bf4 {[%clk 0:03:01.2]}
2... Nf6 {[%clk 0:03:01.1]} 3. Nf3 {[%clk 0:02:54.7]} 3... Nbd7 {[%clk
0:03:00.8]} 4. e3 {[%clk 0:02:46.5]} 4... c6 {[%clk 0:02:58.1]} 5. Bc4 {[%clk
0:02:44.5]} 5... Qc7 {[%clk 0:02:51.7]} 6. h3 {[%clk 0:02:20.8]} 6... e5 {[%clk
0:02:51.3]} 7. dxe5 {[%clk 0:02:22.7]} 7... dxe5 {[%clk 0:02:52.4]} 8. Bh2
{[%clk 0:02:23.4]} 8... Be7 {[%clk 0:02:49]} 9. O-O {[%clk 0:02:22.4]} 9... h6
{[%clk 0:02:48.9]} 10. a4 {[%clk 0:02:20.8]} 10... g5 {[%clk 0:02:36.1]} 11.
Nbd2 {[%clk 0:01:51.1]} 11... Bd6 {[%clk 0:02:28.8]} 12. e4 {[%clk 0:01:26.7]}
12... Nf8 {[%clk 0:02:29.2]} 13. Bd3 {[%clk 0:01:00.5]} 13... Ng6 {[%clk
0:02:29.6]} 14. Nc4 {[%clk 0:01:00.5]} 14... Be6 {[%clk 0:02:17]} 15. Nxd6+
{[%clk 0:00:55.6]} 15... Qxd6 {[%clk 0:02:16.7]} 16. Qd2 {[%clk 0:00:46.4]}
16... O-O-O {[%clk 0:02:07]} 17. Qc3 {[%clk 0:00:46.2]} 17... Nf4 {[%clk
0:01:35.3]} 18. Nxe5 {[%clk 0:00:35.9]} 18... Nxe4 {[%clk 0:01:12.3]} 19. Bxe4
{[%clk 0:00:31.9]} 19... Ne2+ {[%clk 0:01:12.7]} 20. Kh1 {[%clk 0:00:30.1]}
20... Nxc3 {[%clk 0:01:14.6]} 21. bxc3 {[%clk 0:00:25.9]} 21... Qe7 {[%clk
0:01:08.6]} 22. Rfe1 {[%clk 0:00:20.4]} 22... h5 {[%clk 0:01:02.9]} 23. a5
{[%clk 0:00:17.7]} 23... g4 {[%clk 0:01:03.6]} 24. a6 {[%clk 0:00:17.6]} 24...
Rd6 {[%clk 0:00:26.5]} 25. axb7+ {[%clk 0:00:17.1]} 25... Kxb7 {[%clk
0:00:28.4]} 26. Reb1+ {[%clk 0:00:16.3]} 26... Kc8 {[%clk 0:00:24.1]} 27. Nxc6
{[%clk 0:00:16.4]} 27... Rxc6 {[%clk 0:00:13.9]} 28. Bxc6 {[%clk 0:00:18.3]}
28... gxh3 {[%clk 0:00:13.6]} 29. Rb8# {[%clk 0:00:17.9]} 1

[Event "Torneo Nuevo Centro. Jornada 11"]
[Site "Chess.com"]
[Date "2020.08.28"]
[Round "4"]
[White "Vidarte Morales, Arturo"]
[Black "Bercaru, Vlad Ionut"]
[Result "1-0"]
[WhiteElo "2206"]
[BlackElo "1738"]
[TimeControl "180+2"]
[EndTime "11:09:08 PDT"]
[Termination "Victoria de Arturo_Vidarte por jaque mate"]

1. c4 {[%clk 0:03:01.9]} 1... e5 {[%clk 0:02:56.1]} 2. Nc3 {[%clk 0:03:01.1]}
2... Nf6 {[%clk 0:02:56]} 3. g3 {[%clk 0:03:01.8]} 3... d5 {[%clk 0:02:56]} 4.
cxd5 {[%clk 0:03:01.7]} 4... Nxd5 {[%clk 0:02:57.9]} 5. Nf3 {[%clk 0:03:02.3]}
5... Nxc3 {[%clk 0:02:57.3]} 6. bxc3 {[%clk 0:03:01.8]} 6... Nc6 {[%clk
0:02:57]} 7. Bg2 {[%clk 0:03:02]} 7... Bc5 {[%clk 0:02:50.9]} 8. O-O {[%clk
0:02:55.7]} 8... O-O {[%clk 0:02:47.8]} 9. d3 {[%clk 0:02:45.9]} 9... Be6 {[%clk
0:02:36.9]} 10. a4 {[%clk 0:02:44.4]} 10... Rb8 {[%clk 0:02:33.2]} 11. Rb1
{[%clk 0:02:41.6]} 11... b6 {[%clk 0:02:18.8]} 12. Ng5 {[%clk 0:02:40.6]} 12...
Qd7 {[%clk 0:01:59.5]} 13. Nxe6 {[%clk 0:02:23.3]} 13... Qxe6 {[%clk 0:01:58.8]}
14. c4 {[%clk 0:02:15.6]} 14... Ne7 {[%clk 0:01:27.9]} 15. e3 {[%clk 0:02:09.7]}
15... Rfd8 {[%clk 0:01:25.5]} 16. Qc2 {[%clk 0:02:04.5]} 16... c6 {[%clk
0:01:21.9]} 17. Rd1 {[%clk 0:02:03.4]} 17... Kh8 {[%clk 0:01:15.4]} 18. Bb2
{[%clk 0:02:02.5]} 18... f6 {[%clk 0:01:12.3]} 19. d4 {[%clk 0:01:57.4]} 19...
exd4 {[%clk 0:01:09.3]} 20. exd4 {[%clk 0:01:56.3]} 20... Bb4 {[%clk 0:00:51.3]}
21. Qb3 {[%clk 0:01:42]} 21... a5 {[%clk 0:00:46]} 22. Rd3 {[%clk 0:01:26.2]}
22... b5 {[%clk 0:00:38.8]} 23. d5 {[%clk 0:01:26.3]} 23... cxd5 {[%clk
0:00:36.2]} 24. cxb5 {[%clk 0:01:25.8]} 24... Rb6 {[%clk 0:00:21.6]} 25. Rbd1
{[%clk 0:01:25.6]} 25... Rbd6 {[%clk 0:00:21.8]} 26. Re3 {[%clk 0:01:20.5]}
26... Qf7 {[%clk 0:00:21.3]} 27. Red3 {[%clk 0:01:11.1]} 27... Qg6 {[%clk
0:00:16.7]} 28. Bc1 {[%clk 0:01:08.7]} 28... d4 {[%clk 0:00:11.1]} 29. Bf4
{[%clk 0:01:06.1]} 29... R6d7 {[%clk 0:00:10.2]} 30. b6 {[%clk 0:01:02.8]} 30...
Qf7 {[%clk 0:00:04.2]} 31. Bc7 {[%clk 0:00:59.2]} 31... Rc8 {[%clk 0:00:04.2]}
32. Qxf7 {[%clk 0:00:59.3]} 32... Rcxc7 {[%clk 0:00:02.5]} 33. bxc7 {[%clk
0:00:58.1]} 33... Nc6 {[%clk 0:00:02.2]} 34. c8=Q+ {[%clk 0:00:55.8]} 34... Rd8
{[%clk 0:00:04.1]} 35. Qxd8+ {[%clk 0:00:52.7]} 35... Nxd8 {[%clk 0:00:06]} 36.
Qe8+ {[%clk 0:00:52.9]} 36... Bf8 {[%clk 0:00:06.2]} 37. Qxf8# {[%clk
0:00:53.5]} 1